Cogmind - Beta 13 @@@ ROGUE MODE // 2024.07.10 @ 19:45:43 Player: ThatBishHoly Result: Destroyed by Y-54 Guardian with Gatling Laser Performance ------------- Evolutions (4) 2000 Regions Visited (5) 1000 Robots Destroyed (70) 350 Value Destroyed (2430) 2430 Prototype IDs (6) 120 Alien Tech Used (0) 0 Bonus (200) 200 TOTAL SCORE: 6100 Bonus ------- Pacifist 200 Cogmind --------- Core Integrity 0/850 Matter 19/300 Energy 29/100 System Corruption 14% Temperature Cool (6) Movement Core (50) Location -6/Factory Parts ------- > --- POWER (2) -------- (None) > --- PROPULSION (4) --- (None) > --- UTILITY (5) ------ (None) > --- WEAPON (4) ------- (None) > --- INVENTORY (5) ---- Advanced Heat Sink Transmission Jammer Recalibrator High-powered Shotgun Remote Datajack Peak State ------------ > --- POWER ------------ Light Nuclear Core Light Fission Core > --- PROPULSION ------- Improved Medium Treads Improved Medium Treads Armored Huge Wheel > --- UTILITY ---------- Medium Storage Unit Enhanced Optical Array Enhanced Optical Array Hardened Medium Armor Plating Focal Shield > --- WEAPON ----------- High-powered Shotgun High-powered Shotgun Heavy Flak Cannon > --- INVENTORY -------- Improved Titanium Leg Advanced Heat Sink Advanced Heat Sink Matter Compressor Transmission Jammer Recalibrator High-powered Shotgun Gauss Rifle Advanced Assault Cannon Remote Datajack [Rating: 60] Favorites ----------- Power Ion Engine Engine Ion Engine Power Core Light Nuclear Core Propulsion Advanced Treads Treads Advanced Treads Leg VSS Leg Wheel Armored Huge Wheel Flight Unit Improved Flight Unit Utility Improved Cooling System Device Improved Cooling System Storage Medium Storage Unit Processor Enhanced Optical Array Protection Hardened Medium Armor Plating Weapon Heavy Laser Energy Gun Heavy Laser Energy Cannon Heavy Ion Cannon Ballistic Gun High-powered Shotgun Ballistic Cannon Assault Cannon Launcher Proton Missile Launcher Special Weapon Remote Datajack Special Melee Weapon Datajack Build | -11 -10 -9 -8 -7 -6 ------- Run | Yrd Mat Mat Mat Fac Fac Slots Evolved 8 | . . 2 2 2 2 Power 1 | . . . . . 1 Propulsion 2 | . . . 1 1 . Utility 3 | . . 1 1 1 . Weapon 2 | . . 1 . . 1 Parts Attached 94 | 5 . 19 24 13 33 Power 12 | 1 . 1 2 2 6 Engine 5 | 1 . 1 1 . 2 Core 7 | . . . 1 2 4 Reactor . | . . . . . . Propulsion 26 | 2 . 3 12 2 7 Treads 9 | . . 1 6 . 2 Leg 5 | . . . 2 . 3 Wheel 10 | 2 . 2 3 1 2 Hover . | . . . . . . Flight 2 | . . . 1 1 . Utility 18 | . . 4 4 4 6 Device 9 | . . 3 2 2 2 Storage 1 | . . . . 1 . Processor 4 | . . . . 1 3 Hackware . | . . . . . . Protection 4 | . . 1 2 . 1 Artifact . | . . . . . . Weapon 38 | 2 . 11 6 5 14 Energy Gun 15 | 2 . 7 5 . 1 Energy Cannon 1 | . . . . 1 . Ballistic Gun 7 | . . . . 1 6 Ballistic Cannon 7 | . . 4 1 . 2 Launcher 6 | . . . . 3 3 Special Weapon 1 | . . . . . 1 Impact Weapon . | . . . . . . Slashing Weapon . | . . . . . . Piercing Weapon . | . . . . . . Special Melee Weapon 1 | . . . . . 1 Unidentified Prototypes 4 | . . . 2 1 1 Corrupted Parts 3 | . . . . . 3 System Corruption 4 | . . . . . 4 Parts Lost 42 | . . 6 3 12 21 Power 7 | . . 1 . 1 5 Propulsion 7 | . . 2 . 2 3 Utility 10 | . . 2 1 4 3 Weapon 18 | . . 1 2 5 10 Highest Loss Streak 11 | . . 6 2 5 11 To Critical Strikes . | . . . . . . Average Slot Usage (%) 72 | . 71 69 73 81 68 Engine 2 | . 14 8 . . . Core 2 | . . . 1 5 2 Treads 7 | . . . 11 22 1 Wheel 7 | . 28 17 . . 7 Device 12 | . . 11 25 14 5 Storage 2 | . . . . 4 6 Processor 6 | . . . . 7 15 Protection 4 | . . 1 8 4 3 Energy Gun 11 | . 28 26 6 13 . Ballistic Gun 4 | . . . . . 13 Ballistic Cannon 4 | . . 5 15 . . Launcher 3 | . . . . 3 7 Naked Turns 4 | . . . . . 4 Heaviest Build 67 | 8 8 20 30 44 67 Greatest Support 66 | 26 26 32 66 66 60 Greatest Overweight (x) 8 | . . 6 8 1 5 Average Overweight (x) . | . . . . . . Largest Inventory Capacity 10 | 5 5 5 5 10 10 Average Capacity 7 | 5 5 5 5 8 9 Most Carried 10 | 5 3 5 5 10 10 Average Carried 5 | . 1 3 4 6 7 Final Capacity 10 | 5 5 5 5 10 5 Final Carried 8 | . 3 4 3 8 5 Class Distribution -------------------- 52% | Tank 28% | Mutant 18% | Gunner Dominant Class ---------------- Mutant | -10/Materials Tank | -9/Materials Mutant | -8/Materials Tank | -7/Factory Tank | -6/Factory Resources | -11 -10 -9 -8 -7 -6 ----------- Run | Yrd Mat Mat Mat Fac Fac Matter Collected 2103 | 211 39 299 652 180 722 Remotely 734 | . . 163 571 . . Salvage Created 2387 | . . 644 503 534 706 Parts 149 | . . 36 43 27 43 Haulers Intercepted . | . . . . . . Recyclers Shooed 3 | . . . . . 3 Parts Field Recycled . | . . . . . . Retrieved Matter . | . . . . . . Parts Self-Destructed . | . . . . . . Prevented . | . . . . . . Kills | -11 -10 -9 -8 -7 -6 ------- Run | Yrd Mat Mat Mat Fac Fac Combat Hostiles Destroyed 52 | . . 17 13 9 13 Guns 31 | . . 11 3 6 11 Cannons 19 | . . 5 10 3 1 Classes Destroyed 11 | . . 4 4 1 2 Worker 6 | . . . 3 . 3 Builder 7 | . . 1 3 2 1 Tunneler 1 | . . . . 1 . Recycler 1 | . . . . . 1 Watcher 3 | . . . 1 . 2 Swarmer 7 | . . . 3 . 4 Grunt 25 | . . 10 5 6 4 Brawler 2 | . . 1 . 1 . Sentry 11 | . . 6 4 1 . Hunter 5 | . . . 1 1 3 Programmer 2 | . . . . . 2 Best Kill Streak 6 | . . 5 6 5 3 Combat Bots Only 5 | . . 5 3 4 3 Max Kills in Single Turn 2 | . . 2 2 2 1 Gunslinging 1 | . . 1 . . . Exploded . | . . . . . . Melee . | . . . . . . Uniques/NPCs Destroyed . | . . . . . . Combat | -11 -10 -9 -8 -7 -6 -------- Run | Yrd Mat Mat Mat Fac Fac Hostile Shots Fired 736 | . . 156 115 139 326 Missed 185 | . . 45 28 34 78 Damage Taken 8453 | . . 1275 1245 2053 3880 Core 2052 | . . 366 354 480 852 Absorbed by Shields 278 | . . 134 . 120 24 Ignored by Resistances 284 | . . . 4 . 280 Core Remaining (%) 54 | 100 100 8 35 31 . Volleys Fired 196 | . 1 52 41 40 62 Largest 4 | . 2 3 3 3 4 Hottest 207 | . 90 189 207 203 156 Shots Fired 466 | . 2 127 95 69 173 Gun 295 | . 2 90 18 48 137 Cannon 147 | . . 37 77 21 12 Launcher 21 | . . . . . 21 Special 3 | . . . . . 3 Kinetic 278 | . . 37 77 20 144 Thermal 159 | . 2 90 18 49 . Explosive . | . . . . . . Electromagnetic 26 | . . . . . 26 Robot Hit Streak 13 | . . 13 6 7 13 Robot Miss Streak 13 | . . 6 6 5 13 Penetration Max 1 | . . . . 1 1 Secondary Targets 5 | . . 1 2 . 2 Max Gunslinging Chain 1 | . . 1 1 . 1 Shots Hit Robots 287 | . . 86 51 42 108 Core Hits 137 | . . 29 25 23 60 Critical Kills 2 | . . . . 1 1 Critical Parts Destroyed 1 | . . . . 1 . Critical Strikes 10 | . . 4 3 2 1 Burn 4 | . . 3 1 . . Destroy 3 | . . . . 2 1 Blast 3 | . . 1 2 . . Melee Attacks 1 | . . . . . 1 Impact . | . . . . . . Slashing . | . . . . . . Piercing . | . . . . . . Sneak Attacks 1 | . . . . . 1 Combat Hostiles . | . . . . . . Follow-up Attacks . | . . . . . . Damage Inflicted 6297 | . 11 1626 1197 1044 2419 Guns 3636 | . 11 984 268 630 1743 Cannons 2172 | . . 626 929 410 207 Explosions 414 | . . . . . 414 Melee . | . . . . . . Ramming 75 | . . 16 . 4 55 Kinetic 3737 | . . 626 929 308 1874 Thermal 2037 | . 11 984 268 732 42 Explosive . | . . . . . . Electromagnetic 448 | . . . . . 448 Impact . | . . . . . . Slashing . | . . . . . . Piercing . | . . . . . . Highest Corruption 14 | . . 1 . 5 14 Average Corruption 6 | . . 1 . 5 11 Corruption Purged . | . . . . . . Corruption Blocked . | . . . . . . Effects 53 | . . 7 . 8 38 Message Errors 14 | . . 1 . 5 8 Matter Fused 14 | . . 3 . 1 10 Heat Flow Errors 6 | . . . . . 6 Energy Discharges 4 | . . . . 1 3 Data Loss (minor) 8 | . . 2 . . 6 Data Loss (major) 3 | . . . . 1 2 Misfires 1 | . . . . . 1 Alerts 2 | . . 1 . . 1 Misdirections 1 | . . . . . 1 Overload Shots . | . . . . . . Overflow Damage 42 | . . . 12 . 30 Projectiles 12 | . . . 12 . . Explosions 30 | . . . . . 30 Melee . | . . . . . . Knockbacks 19 | . . 6 7 . 6 Impact . | . . . . . . Kinetic 18 | . . 6 7 . 5 Secondary 1 | . . . . . 1 Self-Inflicted Damage 196 | . . 7 . . 189 Shots 8 | . . . . . 8 Rammed 20 | . . 4 . 1 15 Targets Rammed 20 | . . 4 . 1 15 Kicked . | . . . . . . Crushed . | . . . . . . Highest Temperature 896 | . 30 459 896 275 428 Average Temperature 124 | . 17 127 194 80 80 Received Heat Transfer 2220 | . . 543 324 725 628 Effects 21 | . . 2 18 1 . Shutdowns 4 | . . 1 3 . . Energy Bleed 3 | . . . 2 1 . Interference 5 | . . 1 4 . . Damage (minor) 1 | . . . 1 . . Damage (major) 7 | . . . 7 . . Damage (core) 1 | . . . 1 . . Siege Activations . | . . . . . . Robots Corrupted 1 | . . . . . 1 Combat Hostiles 1 | . . . . . 1 Parts Fried 5 | . . . . . 5 Impact Corruptions . | . . . . . . Robots Melted 1 | . . 1 . . . Combat Hostiles 1 | . . 1 . . . Parts Melted 13 | . . 11 . 2 . Heat Transferred 4479 | . 25 2628 592 1184 50 Parts Sabotaged . | . . . . . . Parts Stolen . | . . . . . . Parts Stripped . | . . . . . . Power Chain Reactions 1 | . . . . . 1 Alert | -11 -10 -9 -8 -7 -6 ------- Run | Yrd Mat Mat Mat Fac Fac Peak Influence 367 | . 49 336 367 272 293 Initial 98 | . . 20 70 98 42 Average 138 | . 34 163 201 124 112 Maximum Alert Level 1 | . . 1 1 1 1 Low Security (%) 74 | 100 100 61 44 87 87 Level 1 25 | . . 38 55 12 12 Level 2 . | . . . . . . Level 3 . | . . . . . . Level 4 . | . . . . . . Level 5 . | . . . . . . High Security . | . . . . . . Max Security . | . . . . . . Squads Dispatched 13 | . 1 2 2 2 6 Investigation 3 | . . 1 1 . 1 Extermination 3 | . . . . 1 2 Reinforcement 6 | . 1 1 . 1 3 Assault . | . . . . . . Garrison 1 | . . . 1 . . Intercept . | . . . . . . Searches Triggered . | . . . . . . Construction Impeded 3 | . . 1 . . 2 Haulers Reinforced . | . . . . . . Active Scanning Responses . | . . . . . . Cargo Convoy Interrupts . | . . . . . . Stealth | -11 -10 -9 -8 -7 -6 --------- Run | Yrd Mat Mat Mat Fac Fac Distress Signals 4 | . . 2 1 1 . Communications Jammed . | . . . . . . Distress Signals . | . . . . . . Times Spotted 106 | . 2 25 17 23 39 Peak Tracking Total 10 | . 2 5 4 6 10 Tactical Retreats 10 | . . 1 2 3 4 Traps | -11 -10 -9 -8 -7 -6 ------- Run | Yrd Mat Mat Mat Fac Fac Traps Triggered 2 | . . 1 . 1 . Indirectly . | . . . . . . Trap Hack Attempts . | . . . . . . Triggered . | . . . . . . Disarmed 6 | . 6 . . . . Reprogrammed . | . . . . . . Reused . | . . . . . . Traps Extracted . | . . . . . . Installed . | . . . . . . Triggered . | . . . . . . Machines | -11 -10 -9 -8 -7 -6 ---------- Run | Yrd Mat Mat Mat Fac Fac Machines Disabled 7 | . . 1 1 . 5 Max in Single Turn 1 | . . 1 1 . 1 Machines Repaired . | . . . . . . Machines Dismantled . | . . . . . . Machines Sabotaged . | . . . . . . Overloaded Fab Kills . | . . . . . . Hacking | -11 -10 -9 -8 -7 -6 --------- Run | Yrd Mat Mat Mat Fac Fac Machines Accessed 16 | . 7 3 3 2 1 Terminals 14 | . 7 3 3 1 . Fabricators 1 | . . . . . 1 Repair Stations . | . . . . . . Recycling Units . | . . . . . . Scanalyzers 1 | . . . . 1 . Garrison Access . | . . . . . . Total Hacks 50 | . 29 8 6 4 3 Successful 24 | . 13 3 4 2 2 Failed 26 | . 16 5 2 2 1 Catastrophic 4 | . 1 2 1 . . Database Lockouts . | . . . . . . Manual . | . . . . . . Terminals 45 | . 29 8 6 2 . Fabricators 3 | . . . . . 3 Repair Stations . | . . . . . . Recycling Units . | . . . . . . Scanalyzers 2 | . . . . 2 . Garrison Access . | . . . . . . Terminal Hacks 20 | . 13 3 4 . . Record 3 | . 1 . 2 . . Prototype ID Bank 1 | . 1 . . . . Emergency Access Points 1 | . 1 . . . . Terminal Index 1 | . 1 . . . . Alert Level 1 | . . . 1 . . Locate Traps 1 | . 1 . . . . Disarm Traps 1 | . 1 . . . . Recall Reinforcements 1 | . 1 . . . . Hauler Manifests 4 | . 1 2 1 . . Zone Layout 6 | . 5 1 . . . Fabricator Hacks 2 | . . . . . 2 Load Schematic 1 | . . . . . 1 Build 1 | . . . . . 1 Repair Station Hacks . | . . . . . . Recycling Unit Hacks . | . . . . . . Scanalyzer 2 | . . . . 2 . Insert Component 1 | . . . . 1 . Analyze 1 | . . . . 1 . Garrison Access Hacks . | . . . . . . Unauthorized Hacks . | . . . . . . Terminals . | . . . . . . Fabricators . | . . . . . . Repair Stations . | . . . . . . Recycling Units . | . . . . . . Scanalyzers . | . . . . . . Garrison Access . | . . . . . . Data Cores Recovered . | . . . . . . Used . | . . . . . . Hacking Detections 12 | . 4 3 2 2 1 Full Trace Events 4 | . . 2 1 . 1 Feedback Events . | . . . . . . Feedback Blocked . | . . . . . . Robot Schematics Acquired . | . . . . . . Robots Built . | . . . . . . Authchips . | . . . . . . Time . | . . . . . . Total Robot Build Rating . | . . . . . . Part Schematics Acquired 1 | . . . . 1 . Parts Built 2 | . . . . . 2 Authchips . | . . . . . . Time 42 | . . . . . 42 Total Part Build Rating 8 | . . . . . 8 Parts Repaired . | . . . . . . Time . | . . . . . . Parts Recycled . | . . . . . . Recycled Matter . | . . . . . . Retrieved Matter . | . . . . . . Retrieved Components . | . . . . . . Parts Scanalyzed 1 | . . . . 1 . Part Schematics Acquired 1 | . . . . 1 . Parts Damaged . | . . . . . . Bothacking | -11 -10 -9 -8 -7 -6 ------------ Run | Yrd Mat Mat Mat Fac Fac Used RIF Installer . | . . . . . . Robots Hacked 3 | . . . . . 3 Non-combat 3 | . . . . . 3 Combat . | . . . . . . Robot Hacks Applied 4 | . . . . . 4 no_distress 4 | . . . . . 4 Relay Couplers Released . | . . . . . . Fabnet Peak Effective % . | . . . . . . Robots Rewired . | . . . . . . Allies Hacked . | . . . . . . Hacks Repelled . | . . . . . . Allies | -11 -10 -9 -8 -7 -6 -------- Run | Yrd Mat Mat Mat Fac Fac Total Allies . | . . . . . . Largest Group . | . . . . . . Highest-Rated Group . | . . . . . . Highest-Rated Ally . | . . . . . . Total Orders . | . . . . . . Ally Attacks . | . . . . . . Total Damage . | . . . . . . Kills . | . . . . . . Allies Corrupted . | . . . . . . Allies Melted . | . . . . . . Intel | -11 -10 -9 -8 -7 -6 ------- Run | Yrd Mat Mat Mat Fac Fac Robot Analysis Total . | . . . . . . Derelict Logs Recovered . | . . . . . . Drone Launches . | . . . . . . Drone Recoveries . | . . . . . . Exploration | -11 -10 -9 -8 -7 -6 ------------- Run | Yrd Mat Mat Mat Fac Fac Turns Passed 4318 | 42 233 880 897 927 1339 Spaces Moved 2447 | 44 245 583 372 517 686 Core 49 | 18 . 23 5 . 3 Treads 860 | . . 10 284 499 67 Legs 113 | . . . 67 . 46 Wheels 1425 | 26 245 550 16 18 570 Hover . | . . . . . . Flight . | . . . . . . Fastest Speed 50 | 50 90 90 80 100 50 Average Speed 123 | 73 90 105 167 144 113 Slowest Speed 450 | 90 90 350 450 225 300 Overloaded Moves . | . . . . . . Propulsion Burnouts . | . . . . . . Robots Hopped . | . . . . . . Cave-ins Triggered . | . . . . . . Exploration Rate (%) 26 | 3 36 51 34 17 16 Regions Visited 5 Branch Regions . Pre-discovered Areas . | . . . . . . Known Exits Taken . | . . . . . . Unknown Exits Taken 5 | 1 1 1 1 1 . Scrap Searched . | . . . . . . Spaces Dug . | . . . . . . Terrain Destroyed 72 | . . 7 18 . 47 Melee . | . . . . . . Projectile 27 | . . 7 18 . 2 AOE 45 | . . . . . 45 Terrain Rammed . | . . . . . . Walls Destroyed . | . . . . . . Machines Disabled . | . . . . . . Actions | -11 -10 -9 -8 -7 -6 --------- Run | Yrd Mat Mat Mat Fac Fac Total 3367 | 53 255 737 566 638 1118 Wait 477 | . 7 51 92 39 288 Move 2442 | 43 244 582 371 516 686 Hop . | . . . . . . Pick Up 87 | 5 3 16 21 20 22 Fast Attach 18 | . . 4 3 1 10 Attach 51 | 5 . 3 14 8 21 Detach 1 | . . . . . 1 Swap 25 | . . 12 7 4 2 Drop 49 | . . 13 17 9 10 Fire 196 | . 1 52 41 40 62 Melee 1 | . . . . . 1 Ram 17 | . . 4 . . 13 Kick . | . . . . . . Crush 3 | . . . . 1 2 Escape Stasis . | . . . . . . Rewire . | . . . . . . Trap . | . . . . . . Miscellaneous . | . . . . . . Route ------- -11/Scrapyard -10/Materials (discovered 2 exits: *Mat / [*Min]) -9/Materials -8/Materials -7/Factory -6/Factory History --------- Turn | Location | Event 12 | -11/Scrapyard | Discovered new exit (range 16) 43 | -11/Scrapyard | Entered Materials 116 | -10/Materials | Discovered new exit (range 17) 262 | -10/Materials | Discovered new exit (range 15) 276 | -10/Materials | Entered another Materials area 276 | -9/Materials | Evolved 2 slots: Utility x1, Weapon x1 310 | -9/Materials | Build established: Mutant 935 | -9/Materials | Core integrity fell below 50% 981 | -9/Materials | Discovered new exit (range 15) 1017 | -9/Materials | Core integrity fell below 20% 1047 | -9/Materials | Lost 6 parts (1p2n2u1w) 1156 | -9/Materials | Entered another Materials area 1156 | -8/Materials | Evolved 2 slots: Propulsion x1, Utility x1 1383 | -8/Materials | Garrison activated, responded to threat 1882 | -8/Materials | Core integrity fell below 50% 2040 | -8/Materials | Discovered new exit (range 9) 2053 | -8/Materials | Entered Factory 2053 | -7/Factory | Evolved 2 slots: Propulsion x1, Utility x1 2288 | -7/Factory | Build established: Tank 2787 | -7/Factory | Lost 4 parts (1p1u2w) 2951 | -7/Factory | Discovered new exit (range 16) 2953 | -7/Factory | Core integrity fell below 50% 2980 | -7/Factory | Entered another Factory area 2980 | -6/Factory | Evolved 2 slots: Power x1, Weapon x1 3003 | -6/Factory | Lost 5 parts (2n1u2w) 3294 | -6/Factory | Build established: Gunner 3390 | -6/Factory | Lost 4 parts (1p1u2w) 3438 | -6/Factory | System corruption reached 10% 3456 | -6/Factory | Lost 3 parts (1p2w) 3817 | -6/Factory | Build established: Tank 3825 | -6/Factory | Fabricated Arm. Huge Wheel (x2) 4268 | -6/Factory | Core integrity fell below 50% 4296 | -6/Factory | Lost 11 parts (2p3n2u4w) 4309 | -6/Factory | Core integrity fell below 20% 4315 | -6/Factory | Released all parts (6) 4319 | -6/Factory | Destroyed by Y-54 Guardian with Gatling Laser Last Messages --------------- 04268_ Identified VSS Leg. 04269_ ZEN2XUY8%H4QUK,X 04315_ Released Imp. Titanium Leg. 04315_ Slammed into S-27 Virus. 04316_ Slammed into Y-54 Guardian. 04318_ Destabilizing: Core damaged (-25). 04319_ Slammed into Y-54 Guardian. 04319_ Destabilizing: Core damaged (-8). Map ----- +----------------------------------------------------+ | ????????????????????? !!] ????????# | | ???????????????????? !!] ????????# "" | | ????????????????????? ????????# ["" | | ???????????????????? ! ? # ??????#*%"T !/ | | ????????????????????? ? # ""????# "" !! | | ????????????????????????? # """ ??# "" ! | | ???????????????????????#? # """ # | | ???????????????????????# ? # + | | ???????????????????????# ? # """ ### ######+## | | ???????????????????????# # """ ????# #???????? | | ???????????????????????? # ""??????# #???????? | | ????????????????????????? # ????????# #???????? | | ????????????????????????? #?????#####/#???????? | | ?????????????????????????? #?????# #???????? | | ??????????????????????????? #?????# """#???????? | | ???????????????????????????# #?????# """#???????? | | ???????????????????????????# ####### """#???????? | | ???????????????????????????# / ""#???????? | | ???????????????????????????# ####### ""#???????? | | ?????????????????########### #?????# #???????? | | ?????????# #?????#######???????? | | ????????????????#########g##/######??????????????? | | ????????????????# ==##g## #??????????????? | | ????????????????# """"!##g## #??????????????? | | ????????????????# """"!#s # #??????????????? | | ????????????????# """"[+=@Y/ #??????????????? | | ????????????????# """"!# g # #??????????????? | | ????????????????# ##### #??????????????? | | ????????????????########???########??????????????? | | ?????????????????????????????????????????????????? | | ?????????????????????????????????????????????????? | | ?????????????????????????????????????????????????? | | ?????????????????????????????????????????????????? | | ?????????????????????????????????????????????????? | | ?????????????????????????????????????????????????? | | ?????????????????????????????????????????????????? | | ?????????????????????????????????????????????????? | | ?????????????????????????????????????????????????? | | ?????????????????????????????????????????????????? | | | | | | | | | | | | | | | | | | | | | | | +----------------------------------------------------+ Best States ------------- Heat Dissipation 88 Energy Generation 31 Energy Capacity 520 Matter Stores 300 Matter Capacity 300 Sight Range 22 Terrain Scan Density 10 Jamming Range 12 Armor Coverage 225 Resistance: KI 20 Resistance: TH 10 Evasion (%) 57 Core Analysis 6 Recoil Reduction 3 Item Schematics ----------------- Arm. Huge Wheel | -7/Factory | Scanalyzed Robot Schematics ------------------ None Fabricated ------------ Arm. Huge Wheel | x2 | -6/Factory Alien Tech Used ----------------- None Achievements -------------- None Challenges ------------ None Game ------ Seed AlphaCoolingJammer Manual? 0 Play Time 00:59:05 Cumulative 47.9 hours Start 2024.07.10 @ 18:35:32 End 2024.07.10 @ 19:45:43 Sessions 1 Manual Loads 0 Difficulty Rogue Special Mode None Game No. 131 Rogue 131 Adventurer 0 Explorer 0 Win Type - Total 0 Types 0/0/0/0/0/0/0/0/0 Lore% 20 Gallery% 37 Achievement% 25 Wizard Run 0 Options --------- Layout 2 ASCII 0 Keyboard 0 Movement Mouse Keybinds 0 Fullscreen 1 Font 48/Smallcaps Map View 25x22 Zoom Use 61% Tactical HUD 1 Map Filters NONE Filters NONE Steam 1 RUN: aa96e2d9-43de-4420-a781-5bd51f74ae58